[Event "Titled Tuesday Blitz June 15 2021"]
[White "Andrews, Todd"]
[Black "Libiszewski, Fabien"]
[WhiteFideId "2012456"]
[BlackFideId "616834"]
[WhiteElo "2410"]
[BlackElo "2440"]
[Result "1-0"]
[Round "03"]
[TimeControl "180+1"]
[Date "2021.06.15"]
[WhiteClock "0:00:24"]
[BlackClock "0:00:16"]

1. e4 {[%clk 0:03:00]}  c5 {[%clk 0:02:55]} 2. Nf3 {[%clk 0:03:00]}  Nc6 {[%clk 0:02:55]} 3. d4 {[%clk 0:03:00]}  cxd4 {[%clk 0:02:56]} 4. Nxd4 {[%clk 0:03:00]}  e5 {[%clk 0:02:57]} 5. Nb5 {[%clk 0:02:58]}  d6 {[%clk 0:02:57]} 6. c4 {[%clk 0:02:56]}  Be7 {[%clk 0:02:57]} 7. Be2 {[%clk 0:02:55]}  Nf6 {[%clk 0:02:55]} 8. N5c3 {[%clk 0:02:49]}  O-O {[%clk 0:02:47]} 9. Be3 {[%clk 0:02:49]}  Be6 {[%clk 0:02:47]} 10. Nd2 {[%clk 0:02:44]}  Rc8 {[%clk 0:02:42]} 11. O-O {[%clk 0:02:42]}  a6 {[%clk 0:02:25]} 12. Rc1 {[%clk 0:02:35]}  Nd7 {[%clk 0:02:24]} 13. Nd5 {[%clk 0:02:29]}  Bg5 {[%clk 0:02:19]} 14. Qb3 {[%clk 0:01:57]}  Nc5 {[%clk 0:02:07]} 15. Qa3 {[%clk 0:01:42]}  Bxd5 {[%clk 0:01:51]} 16. exd5 {[%clk 0:01:35]}  Nd4 {[%clk 0:01:47]} 17. Bxd4 {[%clk 0:01:30]}  Bxd2 {[%clk 0:01:25]} 18. Bxc5 {[%clk 0:01:16]}  Bxc1 {[%clk 0:01:02]} 19. Bxd6 {[%clk 0:01:16]}  Bxb2 {[%clk 0:01:02]} 20. Qxb2 {[%clk 0:00:38]}  Qxd6 {[%clk 0:01:02]} 21. Qxb7 {[%clk 0:00:38]}  Rb8 {[%clk 0:01:00]} 22. Qa7 {[%clk 0:00:38]}  Rfc8 {[%clk 0:00:53]} 23. Bd3 {[%clk 0:00:35]}  Rb2 {[%clk 0:00:46]} 24. h4 {[%clk 0:00:30]}  g6 {[%clk 0:00:40]} 25. h5 {[%clk 0:00:29]}  Kg7 {[%clk 0:00:41]} 26. Qe3 {[%clk 0:00:27]}  f5 {[%clk 0:00:36]} 27. h6+ {[%clk 0:00:25]}  Kf6 {[%clk 0:00:32]} 28. Re1 {[%clk 0:00:25]}  e4 {[%clk 0:00:30]} 29. Bf1 {[%clk 0:00:25]}  Qc5 {[%clk 0:00:23]} 30. Qc3+ {[%clk 0:00:25]}  Kg5 {[%clk 0:00:20]} 31. Qxb2 {[%clk 0:00:26]}  Kxh6 {[%clk 0:00:20]} 32. Qd2+ {[%clk 0:00:26]}  Kg7 {[%clk 0:00:20]} 33. Qf4 {[%clk 0:00:26]}  Qd4 {[%clk 0:00:19]} 34. Qd6 {[%clk 0:00:24]}  h5 {[%clk 0:00:16]} 35. Qd7+ {[%clk 0:00:24]} 1-0


[Site "https://www.chess.com"]

[Event "Titled Tuesday Blitz June 15 2021"]
[White "Costachi, Mihnea"]
[Black "Ozates, Tuna"]
[WhiteFideId "1217518"]
[BlackFideId "6354521"]
[WhiteElo "2479"]
[BlackElo "1872"]
[Result "1-0"]
[Round "03"]
[TimeControl "180+1"]
[Date "2021.06.15"]
[WhiteClock "0:00:53"]
[BlackClock "0:00:22"]

1. d4 {[%clk 0:03:00]}  Nf6 {[%clk 0:02:59]} 2. c4 {[%clk 0:03:01]}  g6 {[%clk 0:02:59]} 3. Nc3 {[%clk 0:03:01]}  Bg7 {[%clk 0:02:59]} 4. e4 {[%clk 0:03:01]}  d6 {[%clk 0:02:54]} 5. Be2 {[%clk 0:03:01]}  O-O {[%clk 0:02:54]} 6. Bg5 {[%clk 0:03:01]}  c6 {[%clk 0:02:52]} 7. Qd2 {[%clk 0:03:00]}  Qa5 {[%clk 0:02:50]} 8. Nf3 {[%clk 0:02:57]}  a6 {[%clk 0:02:49]} 9. O-O {[%clk 0:02:55]}  b5 {[%clk 0:02:48]} 10. a3 {[%clk 0:02:56]}  Bg4 {[%clk 0:02:43]} 11. cxb5 {[%clk 0:02:54]}  axb5 {[%clk 0:02:43]} 12. Bh6 {[%clk 0:02:54]}  Nbd7 {[%clk 0:02:40]} 13. Bxg7 {[%clk 0:02:54]}  Kxg7 {[%clk 0:02:40]} 14. e5 {[%clk 0:02:47]}  Nd5 {[%clk 0:02:33]} 15. Nxd5 {[%clk 0:02:39]}  Qxd2 {[%clk 0:02:32]} 16. Nxd2 {[%clk 0:02:40]}  Bxe2 {[%clk 0:02:31]} 17. Rfe1 {[%clk 0:02:40]}  cxd5 {[%clk 0:02:30]} 18. Rxe2 {[%clk 0:02:41]}  dxe5 {[%clk 0:02:30]} 19. dxe5 {[%clk 0:02:42]}  Nc5 {[%clk 0:02:25]} 20. Nf3 {[%clk 0:02:30]}  Nb3 {[%clk 0:02:22]} 21. Rd1 {[%clk 0:02:30]}  e6 {[%clk 0:02:22]} 22. Re3 {[%clk 0:02:31]}  Na5 {[%clk 0:02:20]} 23. Nd4 {[%clk 0:02:27]}  Nc4 {[%clk 0:02:19]} 24. Rb3 {[%clk 0:02:26]}  Rfb8 {[%clk 0:02:12]} 25. f4 {[%clk 0:02:23]}  g5 {[%clk 0:01:50]} 26. fxg5 {[%clk 0:02:20]}  Nxe5 {[%clk 0:01:50]} 27. Rxb5 {[%clk 0:02:21]}  Rxb5 {[%clk 0:01:48]} 28. Nxb5 {[%clk 0:02:21]}  Rb8 {[%clk 0:01:48]} 29. a4 {[%clk 0:02:21]}  Nc4 {[%clk 0:01:48]} 30. b3 {[%clk 0:02:22]}  Na5 {[%clk 0:01:42]} 31. Rd3 {[%clk 0:02:07]}  Kg6 {[%clk 0:01:41]} 32. h4 {[%clk 0:02:08]}  Rd8 {[%clk 0:01:28]} 33. Kf2 {[%clk 0:01:57]}  e5 {[%clk 0:01:27]} 34. Rf3 {[%clk 0:01:50]}  d4 {[%clk 0:01:13]} 35. b4 {[%clk 0:01:49]}  Nc4 {[%clk 0:01:10]} 36. a5 {[%clk 0:01:34]}  d3 {[%clk 0:01:08]} 37. Nc3 {[%clk 0:01:35]}  e4 {[%clk 0:00:53]} 38. Rf6+ {[%clk 0:01:10]}  Kg7 {[%clk 0:00:53]} 39. Nxe4 {[%clk 0:01:02]}  d2 {[%clk 0:00:53]} 40. Nc3 {[%clk 0:01:03]}  d1=Q {[%clk 0:00:39]} 41. Nxd1 {[%clk 0:01:02]}  Rxd1 {[%clk 0:00:40]} 42. Rc6 {[%clk 0:01:01]}  Ne5 {[%clk 0:00:37]} 43. Rb6 {[%clk 0:00:58]}  Rb1 {[%clk 0:00:26]} 44. a6 {[%clk 0:00:56]}  Rxb4 {[%clk 0:00:22]} 45. Rxb4 {[%clk 0:00:53]}  Nd3+ {[%clk 0:00:22]} 46. Kg3 {[%clk 0:00:53]} 1-0


[Site "https://www.chess.com"]

[Event "Titled Tuesday Blitz June 15 2021"]
[White "Cunjalo, Faris"]
[Black "Macovei, Andrei"]
[WhiteFideId "14410710"]
[BlackFideId "13904680"]
[WhiteElo "2234"]
[BlackElo "2439"]
[Result "0-1"]
[Round "03"]
[TimeControl "180+1"]
[Date "2021.06.15"]
[WhiteClock "0:00:01"]
[BlackClock "0:00:14"]

1. c4 {[%clk 0:03:00]}  e5 {[%clk 0:02:57]} 2. g3 {[%clk 0:03:00]}  Nf6 {[%clk 0:02:54]} 3. Bg2 {[%clk 0:03:00]}  h6 {[%clk 0:02:55]} 4. Nc3 {[%clk 0:02:59]}  Bb4 {[%clk 0:02:52]} 5. e4 {[%clk 0:02:57]}  Bxc3 {[%clk 0:02:51]} 6. dxc3 {[%clk 0:02:57]}  d6 {[%clk 0:02:51]} 7. Qe2 {[%clk 0:02:54]}  O-O {[%clk 0:02:52]} 8. Nf3 {[%clk 0:02:54]}  a6 {[%clk 0:02:52]} 9. a4 {[%clk 0:02:54]}  Nbd7 {[%clk 0:02:50]} 10. Nd2 {[%clk 0:02:44]}  Nc5 {[%clk 0:02:49]} 11. O-O {[%clk 0:02:42]}  a5 {[%clk 0:02:40]} 12. b3 {[%clk 0:02:39]}  Bg4 {[%clk 0:02:23]} 13. f3 {[%clk 0:02:34]}  Bd7 {[%clk 0:02:19]} 14. Rf2 {[%clk 0:02:21]}  Bc6 {[%clk 0:02:17]} 15. Rb1 {[%clk 0:02:03]}  Nh7 {[%clk 0:02:14]} 16. g4 {[%clk 0:01:34]}  Ng5 {[%clk 0:02:05]} 17. Nf1 {[%clk 0:01:34]}  Nge6 {[%clk 0:02:05]} 18. Ng3 {[%clk 0:01:35]}  Nf4 {[%clk 0:02:03]} 19. Bxf4 {[%clk 0:01:35]}  exf4 {[%clk 0:02:04]} 20. Nf5 {[%clk 0:01:35]}  g6 {[%clk 0:02:02]} 21. Nd4 {[%clk 0:01:34]}  Nd7 {[%clk 0:01:58]} 22. Qd2 {[%clk 0:01:34]}  Qf6 {[%clk 0:01:56]} 23. Ne2 {[%clk 0:01:24]}  g5 {[%clk 0:01:53]} 24. h4 {[%clk 0:01:21]}  Ne5 {[%clk 0:01:52]} 25. h5 {[%clk 0:01:22]}  Bd7 {[%clk 0:01:46]} 26. Nd4 {[%clk 0:01:20]}  Rfd8 {[%clk 0:01:45]} 27. Rd1 {[%clk 0:01:13]}  c5 {[%clk 0:01:33]} 28. Nc2 {[%clk 0:01:10]}  Be6 {[%clk 0:01:29]} 29. Na3 {[%clk 0:01:07]}  Ra6 {[%clk 0:01:16]} 30. Qe2 {[%clk 0:00:52]}  Rb6 {[%clk 0:01:14]} 31. Nb5 {[%clk 0:00:47]}  Bd7 {[%clk 0:01:14]} 32. Qe1 {[%clk 0:00:37]}  Bxb5 {[%clk 0:01:11]} 33. cxb5 {[%clk 0:00:28]}  c4 {[%clk 0:01:08]} 34. Rd5 {[%clk 0:00:14]}  cxb3 {[%clk 0:00:58]} 35. Qb1 {[%clk 0:00:15]}  Nc4 {[%clk 0:00:55]} 36. Qxb3 {[%clk 0:00:15]}  Ne3 {[%clk 0:00:55]} 37. Rd4 {[%clk 0:00:16]}  Rc8 {[%clk 0:00:49]} 38. Rfd2 {[%clk 0:00:16]}  Qe5 {[%clk 0:00:43]} 39. Bf1 {[%clk 0:00:14]}  Kg7 {[%clk 0:00:39]} 40. Be2 {[%clk 0:00:14]}  Qc5 {[%clk 0:00:37]} 41. R2d3 {[%clk 0:00:13]}  d5 {[%clk 0:00:31]} 42. exd5 {[%clk 0:00:12]}  Rd6 {[%clk 0:00:29]} 43. c4 {[%clk 0:00:10]}  f5 {[%clk 0:00:28]} 44. Qb2 {[%clk 0:00:09]}  Kf7 {[%clk 0:00:28]} 45. Kh2 {[%clk 0:00:07]}  Re8 {[%clk 0:00:26]} 46. Rd2 {[%clk 0:00:04]}  fxg4 {[%clk 0:00:20]} 47. fxg4 {[%clk 0:00:04]}  b6 {[%clk 0:00:21]} 48. Bf3 {[%clk 0:00:04]}  Qc7 {[%clk 0:00:21]} 49. Re4 {[%clk 0:00:04]}  Rxe4 {[%clk 0:00:18]} 50. Bxe4 {[%clk 0:00:04]}  Qe7 {[%clk 0:00:19]} 51. Bg6+ {[%clk 0:00:05]}  Kg8 {[%clk 0:00:20]} 52. Qd4 {[%clk 0:00:05]}  Nf1+ {[%clk 0:00:18]} 53. Kg2 {[%clk 0:00:06]}  Nxd2 {[%clk 0:00:18]} 54. Qxd2 {[%clk 0:00:07]}  Qe5 {[%clk 0:00:17]} 55. Qd3 {[%clk 0:00:04]}  Kg7 {[%clk 0:00:17]} 56. Kf3 {[%clk 0:00:04]}  Rd7 {[%clk 0:00:16]} 57. Be4 {[%clk 0:00:01]}  Rd6 {[%clk 0:00:16]} 58. Bf5 {[%clk 0:00:01]}  Kf8 {[%clk 0:00:16]} 59. Qe3 {[%clk 0:00:01]}  Qxe3+ {[%clk 0:00:14]} 0-1


[Site "https://www.chess.com"]

[Event "Titled Tuesday Blitz June 15 2021"]
[White "David, Alexandru-Vasile"]
[Black "Hansen, Eric"]
[WhiteFideId "1223453"]
[BlackFideId "2606771"]
[WhiteElo "2404"]
[BlackElo "2568"]
[Result "0-1"]
[Round "03"]
[TimeControl "180+1"]
[Date "2021.06.15"]
[WhiteClock "0:00:45"]
[BlackClock "0:00:04"]

1. d4 {[%clk 0:03:00]}  Nf6 {[%clk 0:02:58]} 2. c4 {[%clk 0:02:59]}  g6 {[%clk 0:02:43]} 3. Nc3 {[%clk 0:02:59]}  d5 {[%clk 0:02:43]} 4. cxd5 {[%clk 0:03:00]}  Nxd5 {[%clk 0:02:44]} 5. e4 {[%clk 0:03:01]}  Nxc3 {[%clk 0:02:44]} 6. bxc3 {[%clk 0:03:01]}  Bg7 {[%clk 0:02:44]} 7. Nf3 {[%clk 0:03:02]}  c5 {[%clk 0:02:44]} 8. Bb5+ {[%clk 0:03:02]}  Nc6 {[%clk 0:02:41]} 9. d5 {[%clk 0:03:02]}  a6 {[%clk 0:02:20]} 10. Be2 {[%clk 0:03:01]}  Ne5 {[%clk 0:02:03]} 11. O-O {[%clk 0:02:51]}  O-O {[%clk 0:02:02]} 12. Be3 {[%clk 0:02:45]}  Qc7 {[%clk 0:01:57]} 13. Rc1 {[%clk 0:02:37]}  b5 {[%clk 0:01:46]} 14. Nxe5 {[%clk 0:02:35]}  Bxe5 {[%clk 0:01:36]} 15. f4 {[%clk 0:02:34]}  Bg7 {[%clk 0:01:37]} 16. c4 {[%clk 0:02:33]}  b4 {[%clk 0:01:34]} 17. e5 {[%clk 0:02:29]}  a5 {[%clk 0:01:34]} 18. Qd2 {[%clk 0:02:20]}  a4 {[%clk 0:01:29]} 19. Bf3 {[%clk 0:02:19]}  Ra6 {[%clk 0:01:21]} 20. Qf2 {[%clk 0:02:13]}  Ra5 {[%clk 0:01:22]} 21. Rfd1 {[%clk 0:02:10]}  Rd8 {[%clk 0:01:17]} 22. Rd2 {[%clk 0:02:06]}  Bd7 {[%clk 0:01:02]} 23. d6 {[%clk 0:01:59]}  exd6 {[%clk 0:01:02]} 24. exd6 {[%clk 0:02:00]}  Qc8 {[%clk 0:00:57]} 25. Rd5 {[%clk 0:01:53]}  b3 {[%clk 0:00:57]} 26. axb3 {[%clk 0:01:39]}  axb3 {[%clk 0:00:57]} 27. Rxc5 {[%clk 0:01:40]}  Rxc5 {[%clk 0:00:56]} 28. Bxc5 {[%clk 0:01:41]}  b2 {[%clk 0:00:54]} 29. Re1 {[%clk 0:01:29]}  Bf5 {[%clk 0:00:44]} 30. Bd4 {[%clk 0:01:16]}  Bxd4 {[%clk 0:00:26]} 31. Qxd4 {[%clk 0:01:17]}  Qe6 {[%clk 0:00:21]} 32. Rxe6 {[%clk 0:00:58]}  b1=Q+ {[%clk 0:00:18]} 33. Kf2 {[%clk 0:00:59]}  Bxe6 {[%clk 0:00:14]} 34. c5 {[%clk 0:00:59]}  Qc2+ {[%clk 0:00:11]} 35. Kg3 {[%clk 0:00:57]}  Bd7 {[%clk 0:00:09]} 36. Qd5 {[%clk 0:00:50]}  Qc3 {[%clk 0:00:06]} 37. c6 {[%clk 0:00:45]}  Qe1# {[%clk 0:00:04]} 0-1


[Site "https://www.chess.com"]

[Event "Titled Tuesday Blitz June 15 2021"]
[White "Demidov, Mikhail"]
[Black "Mortazavi, Ali"]
[WhiteFideId "4197143"]
[BlackFideId "401323"]
[WhiteElo "2583"]
[BlackElo "2339"]
[Result "0-1"]
[Round "03"]
[TimeControl "180+1"]
[Date "2021.06.15"]
[WhiteClock "0:00:06"]
[BlackClock "0:00:07"]

1. Nf3 {[%clk 0:02:46]}  Nf6 {[%clk 0:02:59]} 2. g3 {[%clk 0:02:43]}  g6 {[%clk 0:03:00]} 3. Bg2 {[%clk 0:02:43]}  Bg7 {[%clk 0:03:01]} 4. O-O {[%clk 0:02:44]}  O-O {[%clk 0:03:01]} 5. d4 {[%clk 0:02:17]}  d6 {[%clk 0:03:01]} 6. c4 {[%clk 0:02:16]}  Nbd7 {[%clk 0:03:01]} 7. Nc3 {[%clk 0:02:13]}  e5 {[%clk 0:02:59]} 8. e4 {[%clk 0:02:11]}  c6 {[%clk 0:02:57]} 9. h3 {[%clk 0:02:01]}  Qa5 {[%clk 0:02:53]} 10. Re1 {[%clk 0:01:55]}  exd4 {[%clk 0:02:50]} 11. Nxd4 {[%clk 0:01:53]}  Ne5 {[%clk 0:02:47]} 12. Nb3 {[%clk 0:01:37]}  Qc7 {[%clk 0:02:46]} 13. Bf1 {[%clk 0:01:28]}  Be6 {[%clk 0:02:40]} 14. Nd2 {[%clk 0:01:28]}  Nh5 {[%clk 0:01:55]} 15. Kh2 {[%clk 0:00:59]}  f5 {[%clk 0:01:46]} 16. f4 {[%clk 0:00:58]}  Rae8 {[%clk 0:01:27]} 17. exf5 {[%clk 0:00:50]}  Rxf5 {[%clk 0:00:54]} 18. Nde4 {[%clk 0:00:49]}  d5 {[%clk 0:00:40]} 19. cxd5 {[%clk 0:00:37]}  cxd5 {[%clk 0:00:40]} 20. Ng5 {[%clk 0:00:32]}  Rxg5 {[%clk 0:00:26]} 21. fxg5 {[%clk 0:00:32]}  d4 {[%clk 0:00:20]} 22. Ne4 {[%clk 0:00:29]}  Rf8 {[%clk 0:00:20]} 23. Bg2 {[%clk 0:00:26]}  Bf5 {[%clk 0:00:11]} 24. Qb3+ {[%clk 0:00:14]}  Kh8 {[%clk 0:00:11]} 25. Rf1 {[%clk 0:00:15]}  d3 {[%clk 0:00:09]} 26. Bd2 {[%clk 0:00:13]}  Bxe4 {[%clk 0:00:09]} 27. Rxf8+ {[%clk 0:00:13]}  Bxf8 {[%clk 0:00:10]} 28. Bxe4 {[%clk 0:00:13]}  Nf3+ {[%clk 0:00:08]} 29. Kh1 {[%clk 0:00:10]}  Nxd2 {[%clk 0:00:02]} 30. Qxd3 {[%clk 0:00:08]}  Nxe4 {[%clk 0:00:02]} 31. Re1 {[%clk 0:00:07]}  Nhxg3+ {[%clk 0:00:02]} 32. Kg2 {[%clk 0:00:07]}  Qc6 {[%clk 0:00:03]} 33. Kh2 {[%clk 0:00:06]}  h5 {[%clk 0:00:03]} 34. Qd4+ {[%clk 0:00:07]}  Bg7 {[%clk 0:00:03]} 35. Qd8+ {[%clk 0:00:06]}  Kh7 {[%clk 0:00:04]} 36. Qd3 {[%clk 0:00:05]}  Qc7 {[%clk 0:00:03]} 37. Kg2 {[%clk 0:00:05]}  h4 {[%clk 0:00:04]} 38. Rxe4 {[%clk 0:00:05]}  Nxe4 {[%clk 0:00:04]} 39. Qxe4 {[%clk 0:00:06]}  Qg3+ {[%clk 0:00:05]} 40. Kf1 {[%clk 0:00:06]}  Qxh3+ {[%clk 0:00:05]} 41. Ke2 {[%clk 0:00:07]}  Qg3 {[%clk 0:00:06]} 42. Qxb7 {[%clk 0:00:07]}  h3 {[%clk 0:00:06]} 43. b4 {[%clk 0:00:06]}  h2 {[%clk 0:00:07]} 44. a4 {[%clk 0:00:06]}  Qg1 {[%clk 0:00:07]} 45. Qf3 {[%clk 0:00:06]} 0-1


[Site "https://www.chess.com"]

[Event "Titled Tuesday Blitz June 15 2021"]
[White "Durarbayli, Vasif"]
[Black "Oparin, Grigoriy"]
[WhiteFideId "13402935"]
[BlackFideId "24125890"]
[WhiteElo "2500"]
[BlackElo "2628"]
[Result "1-0"]
[Round "03"]
[TimeControl "180+1"]
[Date "2021.06.15"]
[WhiteClock "0:00:11"]
[BlackClock "0:00:33"]

1. e4 {[%clk 0:03:00]}  d6 {[%clk 0:02:56]} 2. d4 {[%clk 0:03:00]}  g6 {[%clk 0:02:57]} 3. Nc3 {[%clk 0:02:58]}  Bg7 {[%clk 0:02:57]} 4. Be3 {[%clk 0:02:59]}  a6 {[%clk 0:02:58]} 5. g4 {[%clk 0:02:59]}  b5 {[%clk 0:02:57]} 6. Bg2 {[%clk 0:02:50]}  Bb7 {[%clk 0:02:53]} 7. h4 {[%clk 0:02:49]}  h5 {[%clk 0:02:47]} 8. gxh5 {[%clk 0:02:46]}  Rxh5 {[%clk 0:02:47]} 9. Nge2 {[%clk 0:02:40]}  b4 {[%clk 0:02:42]} 10. Nd5 {[%clk 0:02:39]}  e6 {[%clk 0:02:40]} 11. Nxb4 {[%clk 0:02:27]}  Rxh4 {[%clk 0:02:40]} 12. Ng3 {[%clk 0:02:22]}  a5 {[%clk 0:02:32]} 13. Nd3 {[%clk 0:02:19]}  Nd7 {[%clk 0:02:31]} 14. c3 {[%clk 0:02:15]}  Rxh1+ {[%clk 0:02:25]} 15. Bxh1 {[%clk 0:02:15]}  Qh4 {[%clk 0:02:24]} 16. Qd2 {[%clk 0:01:56]}  Ngf6 {[%clk 0:02:12]} 17. Bg5 {[%clk 0:01:53]}  Qg4 {[%clk 0:02:10]} 18. Qe3 {[%clk 0:01:40]}  Nh7 {[%clk 0:01:56]} 19. Bh6 {[%clk 0:01:36]}  Bxh6 {[%clk 0:01:47]} 20. Qxh6 {[%clk 0:01:37]}  Nhf6 {[%clk 0:01:48]} 21. Qe3 {[%clk 0:01:31]}  Rb8 {[%clk 0:01:31]} 22. Bf3 {[%clk 0:01:31]}  Qh4 {[%clk 0:01:30]} 23. O-O-O {[%clk 0:01:30]}  Ng8 {[%clk 0:01:12]} 24. Rh1 {[%clk 0:01:24]}  Qf6 {[%clk 0:01:12]} 25. Bg2 {[%clk 0:01:16]}  e5 {[%clk 0:01:11]} 26. dxe5 {[%clk 0:01:07]}  Nxe5 {[%clk 0:01:12]} 27. Nxe5 {[%clk 0:00:56]}  dxe5 {[%clk 0:01:13]} 28. Bf1 {[%clk 0:00:44]}  Kf8 {[%clk 0:01:07]} 29. Bc4 {[%clk 0:00:34]}  Ba6 {[%clk 0:01:08]} 30. Qc5+ {[%clk 0:00:31]}  Kg7 {[%clk 0:01:06]} 31. Bxa6 {[%clk 0:00:26]}  Qxa6 {[%clk 0:01:04]} 32. Qxe5+ {[%clk 0:00:19]}  Nf6 {[%clk 0:01:04]} 33. Qg5 {[%clk 0:00:13]}  Qb5 {[%clk 0:00:33]} 34. Qh6+ {[%clk 0:00:10]}  Kg8 {[%clk 0:00:33]} 35. Qh8# {[%clk 0:00:11]} 1-0


[Site "https://www.chess.com"]

[Event "Titled Tuesday Blitz June 15 2021"]
[White "Fernandez Hernandez, Arturo A."]
[Black "Xiong, Jeffery"]
[WhiteFideId "3509230"]
[BlackFideId "2047640"]
[WhiteElo "2400"]
[BlackElo "2724"]
[Result "0-1"]
[Round "03"]
[TimeControl "180+1"]
[Date "2021.06.15"]
[WhiteClock "0:00:43"]
[BlackClock "0:01:53"]

1. e4 {[%clk 0:03:00]}  Nf6 {[%clk 0:02:36]} 2. e5 {[%clk 0:03:00]}  Nd5 {[%clk 0:02:37]} 3. c4 {[%clk 0:02:59]}  Nb6 {[%clk 0:02:37]} 4. d4 {[%clk 0:03:00]}  d6 {[%clk 0:02:37]} 5. exd6 {[%clk 0:02:58]}  exd6 {[%clk 0:02:37]} 6. Nc3 {[%clk 0:02:55]}  Nc6 {[%clk 0:02:37]} 7. Be3 {[%clk 0:02:55]}  g6 {[%clk 0:02:31]} 8. Rc1 {[%clk 0:02:50]}  Bg7 {[%clk 0:02:28]} 9. h3 {[%clk 0:02:40]}  O-O {[%clk 0:02:24]} 10. Nf3 {[%clk 0:02:39]}  Re8 {[%clk 0:02:23]} 11. d5 {[%clk 0:02:31]}  Ne5 {[%clk 0:02:14]} 12. Nxe5 {[%clk 0:02:30]}  Bxe5 {[%clk 0:02:15]} 13. Be2 {[%clk 0:02:29]}  Qh4 {[%clk 0:02:15]} 14. Nb5 {[%clk 0:02:18]}  Bxb2 {[%clk 0:02:13]} 15. Nxc7 {[%clk 0:02:00]}  Rxe3 {[%clk 0:02:11]} 16. Nxa8 {[%clk 0:01:46]}  Nxa8 {[%clk 0:02:12]} 17. g3 {[%clk 0:01:44]}  Qe4 {[%clk 0:02:04]} 18. fxe3 {[%clk 0:01:14]}  Qxh1+ {[%clk 0:01:59]} 19. Kf2 {[%clk 0:01:09]}  Qh2+ {[%clk 0:01:59]} 20. Kf3 {[%clk 0:01:05]}  Bxh3 {[%clk 0:01:53]} 21. Qg1 {[%clk 0:00:43]}  Bg4+ {[%clk 0:01:53]} 0-1


[Site "https://www.chess.com"]

[Event "Titled Tuesday Blitz June 15 2021"]
[White "Gledura, Benjamin"]
[Black "Sadykov, Ramil"]
[WhiteFideId "712779"]
[BlackFideId "24113590"]
[WhiteElo "2377"]
[BlackElo "2300"]
[Result "1-0"]
[Round "03"]
[TimeControl "180+1"]
[Date "2021.06.15"]
[WhiteClock "0:01:37"]
[BlackClock "0:00:03"]

1. d4 {[%clk 0:03:00]}  d5 {[%clk 0:02:11]} 2. c4 {[%clk 0:02:59]}  e6 {[%clk 0:02:11]} 3. Nf3 {[%clk 0:02:57]}  Nf6 {[%clk 0:02:10]} 4. Qc2 {[%clk 0:02:56]}  Be7 {[%clk 0:02:05]} 5. Bg5 {[%clk 0:02:50]}  h6 {[%clk 0:01:49]} 6. Bxf6 {[%clk 0:02:46]}  Bxf6 {[%clk 0:01:49]} 7. e3 {[%clk 0:02:47]}  O-O {[%clk 0:01:49]} 8. Nc3 {[%clk 0:02:46]}  c6 {[%clk 0:01:46]} 9. h4 {[%clk 0:02:44]}  g6 {[%clk 0:01:37]} 10. g4 {[%clk 0:02:42]}  Bg7 {[%clk 0:01:37]} 11. g5 {[%clk 0:02:42]}  h5 {[%clk 0:01:37]} 12. O-O-O {[%clk 0:02:41]}  Qe7 {[%clk 0:01:25]} 13. Ne5 {[%clk 0:02:37]}  Nd7 {[%clk 0:01:14]} 14. f4 {[%clk 0:02:36]}  Rd8 {[%clk 0:00:50]} 15. cxd5 {[%clk 0:02:31]}  exd5 {[%clk 0:00:50]} 16. Bd3 {[%clk 0:02:25]}  Nxe5 {[%clk 0:00:44]} 17. fxe5 {[%clk 0:02:25]}  Bg4 {[%clk 0:00:44]} 18. Rdf1 {[%clk 0:02:24]}  c5 {[%clk 0:00:41]} 19. Rf4 {[%clk 0:02:22]}  Rac8 {[%clk 0:00:36]} 20. Rhf1 {[%clk 0:02:22]}  Be6 {[%clk 0:00:37]} 21. Rf6 {[%clk 0:02:12]}  cxd4 {[%clk 0:00:30]} 22. exd4 {[%clk 0:02:12]}  Bxf6 {[%clk 0:00:19]} 23. gxf6 {[%clk 0:02:11]}  Qe8 {[%clk 0:00:16]} 24. Rg1 {[%clk 0:02:06]}  Bg4 {[%clk 0:00:16]} 25. Qd2 {[%clk 0:02:02]}  a6 {[%clk 0:00:12]} 26. Qg5 {[%clk 0:01:48]}  Qf8 {[%clk 0:00:07]} 27. Kb1 {[%clk 0:01:38]}  b5 {[%clk 0:00:07]} 28. Ne2 {[%clk 0:01:38]}  Rc6 {[%clk 0:00:04]} 29. Nf4 {[%clk 0:01:37]}  Rdc8 {[%clk 0:00:03]} 30. Nxg6 {[%clk 0:01:37]}  fxg6 {[%clk 0:00:03]} 31. Qxg6+ {[%clk 0:01:37]} 1-0


[Site "https://www.chess.com"]